fUST/lending_fUST_20250307
["ID","MTS","AMOUNT","RATE_DAILY","PERIOD"]
[355599867,1741357851606,-500.0,0.00039178,30]
[355599868,1741357851616,-716.55,0.00039178,30]
[355599869,1741357851626,-2610.77,0.00039178,30]
[355599870,1741357851635,-500.0,0.00039178,30]
[355599871,1741357851645,-500.0,0.00039178,30]
[355599872,1741357851655,-500.0,0.00039178,30]
[355599873,1741357851664,-1292.51,0.00039178,30]
[355599874,1741357851674,-612.3,0.00039178,30]
[355599875,1741357851684,-500.0,0.00039178,30]
[355599876,1741357851693,-1382.9,0.00039178,30]
[355599877,1741357851703,-2004.36,0.00039178,15]
[355599878,1741357851712,-329.97023215,0.00039178,30]
[355599879,1741357851722,-577.0,0.00039178,30]
[355599880,1741357851732,-6428.78,0.00039178,30]
[355599881,1741357851742,-722.58,0.00039178,30]
[355599882,1741357851751,-1032.7,0.00039178,30]
[355599883,1741357851762,-500.0,0.00039178,30]
[355599884,1741357851772,-665.5,0.00039178,30]
[355599885,1741357851782,-500.0,0.00039178,30]
[355599886,1741357851791,-8893.18,0.00039178,30]
[355599887,1741357851801,-795.02,0.00039178,30]
[355599888,1741357851813,-500.0,0.00039178,30]
[355599889,1741357851823,-1493.56,0.00039178,30]
[355599890,1741357851833,-4367.99,0.00039178,30]
[355599891,1741357851843,-749.31,0.00039178,30]
[355599892,1741357851852,-2707.82,0.00039178,30]
[355599893,1741357851862,-500.0,0.00039178,30]
[355599894,1741357851872,-643.96,0.00039178,30]
[355599895,1741357851882,-500.0,0.00039178,30]
[355599896,1741357851891,-500.0,0.00039178,30]
[355599897,1741357851901,-500.0,0.00039178,30]
[355599898,1741357851911,-2470.25,0.00039178,30]
[355599899,1741357851920,-591.29,0.00039178,30]
[355599900,1741357851930,-5064.26,0.00039178,30]
[355599901,1741357851939,-500.0,0.00039178,30]
[355599902,1741357851949,-2702.56,0.00039178,30]
[355599903,1741357851958,-796.49,0.00039178,30]
[355599904,1741357851968,-748.95,0.00039178,30]
[355599905,1741357851977,-968.16,0.00039178,30]
[355599906,1741357851987,-1434.71,0.00039178,30]
[355599907,1741357851997,-1575.88,0.00039178,30]
[355599908,1741357852007,-1248.42,0.00039178,30]
[355599909,1741357852016,-1206.59,0.00039178,30]
[355599910,1741357852026,-713.9,0.00039178,30]
[355599911,1741357852036,-674.94,0.00039178,30]
[355599912,1741357852045,-1065.08,0.00039178,7]
[355599913,1741357852055,-673.48,0.00039178,30]
[355599914,1741357852067,-500.0,0.00039178,30]
[355599915,1741357852077,-1075.1,0.00039178,30]
[355599916,1741357852087,-500.0,0.00039178,30]
[355599917,1741357852097,-765.28,0.00039178,30]
[355599918,1741357852107,-500.0,0.00039178,30]
[355599919,1741357852116,-773.72,0.00039178,30]
[355599920,1741357852126,-3559.04,0.00039178,30]
[355599921,1741357852140,-1301.44,0.00039178,30]
[355599922,1741357852150,-3825.24,0.00039178,30]
[355599923,1741357852159,-2253.86,0.00039178,30]
[355599924,1741357852170,-500.0,0.00039178,30]
[355599925,1741357852179,-4575.66,0.00039178,30]
[355599926,1741357852190,-500.0,0.00039178,30]
[355599927,1741357852200,-10000.0,0.00039178,14]
[355599928,1741357852211,-639.23,0.00039178,30]
[355599929,1741357852221,-4376.22,0.00039178,30]
[355599930,1741357852231,-10000.0,0.00039178,14]
[355599931,1741357852241,-1801.35,0.00039178,30]
[355599932,1741357852251,-500.0,0.00039178,30]
[355599933,1741357852260,-500.0,0.00039178,30]
[355599934,1741357852269,-500.0,0.00039178,30]
[355599935,1741357852279,-500.0,0.00039178,30]
[355599936,1741357852288,-546.0,0.00039178,30]
[355599937,1741357852298,-500.0,0.00039178,2]
[355599938,1741357852310,-301.93,0.000392,30]
[355599939,1741357852320,-600.0,0.000392,2]
[355599940,1741357852330,-600.0,0.00039231,7]
[355599941,1741357852340,-160.0,0.00039263,5]
[355599942,1741357852349,-561.0,0.00039267,14]
[355599943,1741357852359,-791.9923585,0.00039325,2]
[355599944,1741357852369,-2000.0,0.00039394,4]
[355599945,1741357852378,-865.699999,0.000394,24]
[355599946,1741357852388,-209.40606379,0.00039452,30]
[355599947,1741357852398,-806.97,0.00039452,30]
[355599948,1741357852407,-500.0,0.00039452,30]
[355599949,1741357852416,-500.0,0.00039452,30]
[355599950,1741357852427,-500.0,0.00039452,30]
[355599951,1741357852436,-500.0,0.00039452,30]
[355599952,1741357852445,-500.0,0.00039452,30]
[355599953,1741357852455,-500.0,0.00039452,30]
[355599954,1741357852464,-500.0,0.00039452,3]
[355599955,1741357852474,-500.0,0.00039452,30]
[355599956,1741357852483,-500.0,0.00039452,30]
[355599957,1741357852493,-500.0,0.00039452,30]
[355599958,1741357852503,-705.57,0.00039452,30]
[355599959,1741357852512,-500.0,0.00039452,30]
[355599960,1741357852522,-2051.0,0.00039452,30]
[355599961,1741357852531,-500.0,0.00039452,30]
[355599962,1741357852541,-706.25,0.00039452,30]
[355599963,1741357852551,-500.0,0.00039452,30]
[355599964,1741357852563,-500.0,0.00039452,30]
[355599965,1741357852573,-500.0,0.00039452,30]
[355599966,1741357852582,-580.88,0.00039452,30]
[355599967,1741357852592,-500.0,0.00039452,30]
[355599968,1741357852601,-558.69,0.00039452,30]
[355599969,1741357852610,-500.0,0.00039452,30]
[355599970,1741357852621,-500.0,0.00039452,30]
[355599971,1741357852630,-500.0,0.00039452,30]
[355599972,1741357852641,-500.0,0.00039452,30]
[355599973,1741357852650,-512.17,0.00039452,30]
[355599974,1741357852660,-500.0,0.00039452,30]
[355599975,1741357852669,-500.0,0.00039452,30]
[355599976,1741357852679,-500.0,0.00039452,30]
[355599977,1741357852688,-500.0,0.00039452,30]
[355599978,1741357852698,-500.0,0.00039452,30]
[355599979,1741357852708,-602.65,0.00039452,30]
[355599980,1741357852717,-500.0,0.00039452,30]
[355599981,1741357852726,-712.98,0.00039452,30]
[355599982,1741357852736,-500.0,0.00039452,30]
[355599983,1741357852745,-500.0,0.00039452,30]
[355599984,1741357852755,-500.0,0.00039452,30]
[355599985,1741357852765,-1165.07,0.00039452,30]
[355599986,1741357852775,-500.0,0.00039452,30]
[355599987,1741357852784,-1041.2,0.00039452,30]
[355599988,1741357852794,-1106.08,0.00039452,30]
[355599989,1741357852803,-500.0,0.00039452,30]
[355599990,1741357852814,-832.8,0.00039452,30]
[355599991,1741357852823,-500.0,0.00039452,30]
[355599992,1741357852833,-500.0,0.00039452,30]
[355599993,1741357852842,-548.57,0.00039452,30]
[355599994,1741357852852,-500.0,0.00039452,30]
[355599995,1741357852862,-663.33,0.00039452,30]
[355599996,1741357852872,-500.0,0.00039452,2]
[355599997,1741357852883,-500.0,0.00039452,30]
[355599998,1741357852893,-500.0,0.00039452,30]
[355599999,1741357852902,-500.0,0.00039452,30]
[355600000,1741357852912,-571.98,0.00039452,30]
[355600001,1741357852922,-508.75,0.00039452,30]
[355600002,1741357852976,-773.88,0.00039452,30]
[355600003,1741357852985,-500.0,0.00039452,30]
[355600004,1741357852995,-1190.57,0.00039452,30]
[355600005,1741357853005,-773.31,0.00039452,30]
[355600006,1741357853015,-535.22,0.00039452,30]
[355600007,1741357853025,-1000.0,0.00039452,7]
[355600008,1741357853034,-500.0,0.00039452,30]
[355600009,1741357853044,-674.96,0.00039452,30]
[355600010,1741357853054,-500.0,0.00039452,30]
[355600011,1741357853065,-500.0,0.00039452,30]
[355600012,1741357853075,-500.0,0.00039452,30]
[355600013,1741357853086,-500.0,0.00039452,30]
[355600014,1741357853096,-1092.95,0.00039452,30]
[355600015,1741357853106,-500.0,0.00039452,30]
[355600016,1741357853117,-8089.12,0.00039452,30]
[355600017,1741357853127,-500.0,0.00039452,30]
[355600018,1741357853142,-1368.46,0.00039452,30]
[355600019,1741357853152,-500.0,0.00039452,30]
[355600020,1741357853162,-1646.73,0.00039452,30]
[355600021,1741357853172,-1042.05,0.00039452,30]
[355600022,1741357853184,-896.61,0.00039452,30]
[355600023,1741357853194,-1423.74,0.00039452,30]
[355600024,1741357853205,-545.4,0.00039452,30]
[355600025,1741357853214,-1667.47,0.00039452,30]
[355600026,1741357853225,-855.28,0.00039452,30]
[355600027,1741357853235,-1876.6,0.00039452,30]
[355600028,1741357853245,-500.0,0.00039452,30]
[355600029,1741357853255,-500.0,0.00039452,30]
[355600030,1741357853265,-685.68,0.00039452,30]
[355600031,1741357853279,-1348.74,0.00039452,30]
[355600032,1741357853289,-1572.44,0.00039452,30]
[355600033,1741357853301,-500.0,0.00039452,30]
[355600034,1741357853315,-500.0,0.00039452,30]
[355600035,1741357853336,-500.0,0.00039452,30]
[355600036,1741357853348,-500.0,0.00039452,30]
[355600037,1741357853358,-500.0,0.00039452,30]
[355600038,1741357853370,-132607.36,0.00039452,7]
[355600039,1741357853381,-850.8,0.00039452,30]
[355600040,1741357853392,-500.0,0.00039452,30]
[355600041,1741357853403,-500.0,0.00039452,30]
[355600042,1741357853413,-904.12,0.00039452,30]
[355600043,1741357853424,-1621.58,0.00039452,30]
[355600044,1741357853434,-1312.15,0.00039452,30]
[355600045,1741357853445,-500.0,0.00039452,30]
[355600046,1741357853455,-716.55,0.00039452,30]
[355600047,1741357853465,-2610.77,0.00039452,30]
[355600048,1741357853478,-500.0,0.00039452,30]
[355600049,1741357853489,-500.0,0.00039452,30]
[355600050,1741357853499,-500.0,0.00039452,30]
[355600051,1741357853509,-1292.51,0.00039452,30]
[355600052,1741357853520,-612.3,0.00039452,30]
[355600053,1741357853531,-500.0,0.00039452,30]
[355600054,1741357853542,-1382.9,0.00039452,30]
[355600055,1741357853552,-2004.36,0.00039452,15]
[355600056,1741357853564,-577.0,0.00039452,30]
[355600057,1741357853574,-6428.78,0.00039452,30]
[355600058,1741357853584,-722.58,0.00039452,30]
[355600059,1741357853593,-1032.7,0.00039452,30]
[355600060,1741357853603,-500.0,0.00039452,30]
[355600061,1741357853613,-665.5,0.00039452,30]
[355600062,1741357853623,-500.0,0.00039452,30]
[355600063,1741357853634,-8893.18,0.00039452,30]
[355600064,1741357853644,-795.02,0.00039452,30]
[355600065,1741357853654,-500.0,0.00039452,30]
[355600066,1741357853665,-1493.56,0.00039452,30]
[355600067,1741357853674,-4367.99,0.00039452,30]
[355600068,1741357853684,-749.31,0.00039452,30]
[355600069,1741357853693,-2707.82,0.00039452,30]
[355600070,1741357853703,-500.0,0.00039452,30]
[355600071,1741357853713,-643.96,0.00039452,30]
[355600072,1741357853722,-500.0,0.00039452,30]
[355600073,1741357853732,-500.0,0.00039452,30]
[355600074,1741357853742,-500.0,0.00039452,30]
[355600075,1741357853752,-2470.25,0.00039452,30]
[355600076,1741357853762,-591.29,0.00039452,30]
[355600077,1741357853772,-5064.26,0.00039452,30]
[355600078,1741357853782,-500.0,0.00039452,30]
[355600079,1741357853792,-2702.56,0.00039452,30]
[355600080,1741357853803,-796.49,0.00039452,30]
[355600081,1741357853816,-748.95,0.00039452,30]
[355600082,1741357853827,-968.16,0.00039452,30]
[355600083,1741357853837,-1434.71,0.00039452,30]
[355600084,1741357853846,-1575.88,0.00039452,30]
[355600085,1741357853855,-1248.42,0.00039452,30]
[355600086,1741357853864,-1206.59,0.00039452,30]
[355600087,1741357853874,-713.9,0.00039452,30]
[355600088,1741357853884,-674.94,0.00039452,30]
[355600089,1741357853893,-1065.08,0.00039452,7]
[355600090,1741357853902,-673.48,0.00039452,30]
[355600091,1741357853912,-500.0,0.00039452,30]
[355600092,1741357853922,-1075.1,0.00039452,30]
[355600093,1741357853931,-500.0,0.00039452,30]
[355600094,1741357853941,-765.28,0.00039452,30]
[355600095,1741357853951,-500.0,0.00039452,30]
[355600096,1741357853961,-773.72,0.00039452,30]
[355600097,1741357853971,-3559.04,0.00039452,30]
[355600098,1741357853980,-1301.44,0.00039452,30]
[355600099,1741357853990,-3825.24,0.00039452,30]
[355600100,1741357853999,-2253.86,0.00039452,30]
[355600101,1741357854009,-500.0,0.00039452,30]
[355600102,1741357854018,-4575.66,0.00039452,30]
[355600103,1741357854027,-500.0,0.00039452,30]
[355600104,1741357854037,-10000.0,0.00039452,14]
[355600105,1741357854047,-639.23,0.00039452,30]
[355600106,1741357854056,-4376.22,0.00039452,30]
[355600107,1741357854069,-10000.0,0.00039452,14]
[355600108,1741357854079,-1801.35,0.00039452,30]
[355600109,1741357854089,-500.0,0.00039452,30]
[355600110,1741357854098,-500.0,0.00039452,30]
[355600111,1741357854108,-500.0,0.00039452,30]
[355600112,1741357854118,-500.0,0.00039452,30]
[355600113,1741357854128,-500.0,0.00039452,2]
[355600114,1741357854139,-546.0,0.00039452,30]
[355600115,1741357854149,-6755.16,0.000395,7]
[355600116,1741357854162,-791.9923585,0.000395,2]
[355600117,1741357854171,-600.0,0.000396,2]
[355600118,1741357854181,-739.227283,0.000397,39]
[355600119,1741357854191,-250.0,0.00039721,5]
[355600120,1741357854205,-806.97,0.00039726,30]
[355600121,1741357854214,-500.0,0.00039726,30]
[355600122,1741357854224,-500.0,0.00039726,30]
[355600123,1741357854240,-500.0,0.00039726,30]
[355600124,1741357854255,-500.0,0.00039726,30]
[355600125,1741357854270,-500.0,0.00039726,30]
[355600126,1741357854284,-500.0,0.00039726,30]
[355600127,1741357854294,-500.0,0.00039726,3]
[355600128,1741357854304,-500.0,0.00039726,30]
[355600129,1741357854315,-500.0,0.00039726,30]
[355600130,1741357854325,-500.0,0.00039726,30]
[355600131,1741357854334,-705.57,0.00039726,30]
[355600132,1741357854344,-500.0,0.00039726,30]
[355600133,1741357854354,-2051.0,0.00039726,30]
[355600134,1741357854365,-500.0,0.00039726,30]
[355600135,1741357854375,-706.25,0.00039726,30]
[355600136,1741357854384,-500.0,0.00039726,30]
[355600137,1741357854393,-500.0,0.00039726,30]
[355600138,1741357854402,-500.0,0.00039726,30]
[355600139,1741357854411,-580.88,0.00039726,30]
[355600140,1741357854421,-158.75052924,0.00039726,30]
[355600141,1741357854430,-558.69,0.00039726,30]
[355600142,1741357854440,-500.0,0.00039726,30]
[355600143,1741357854449,-500.0,0.00039726,30]
[355600144,1741357854458,-500.0,0.00039726,30]
[355600145,1741357854467,-500.0,0.00039726,30]
[355600146,1741357854477,-512.17,0.00039726,30]
[355600147,1741357854486,-500.0,0.00039726,30]
[355600148,1741357854496,-500.0,0.00039726,30]
[355600149,1741357854506,-500.0,0.00039726,30]
[355600150,1741357854515,-500.0,0.00039726,30]
[355600151,1741357854524,-500.0,0.00039726,30]
[355600152,1741357854534,-602.65,0.00039726,30]
[355600153,1741357854543,-500.0,0.00039726,30]
[355600154,1741357854553,-712.98,0.00039726,30]
[355600155,1741357854564,-500.0,0.00039726,30]
[355600156,1741357854573,-500.0,0.00039726,30]
[355600157,1741357854584,-500.0,0.00039726,30]
[355600158,1741357854596,-1165.07,0.00039726,30]
[355600159,1741357854607,-500.0,0.00039726,30]
[355600160,1741357854616,-1041.2,0.00039726,30]
[355600161,1741357854626,-1106.08,0.00039726,30]
[355600162,1741357854636,-500.0,0.00039726,30]
[355600163,1741357854647,-832.8,0.00039726,30]
[355600164,1741357854657,-500.0,0.00039726,30]
[355600165,1741357854667,-500.0,0.00039726,30]
[355600166,1741357854677,-548.57,0.00039726,30]
[355600167,1741357854686,-500.0,0.00039726,30]
[355600168,1741357854696,-663.33,0.00039726,30]
[355600169,1741357854706,-500.0,0.00039726,2]
[355600170,1741357854716,-500.0,0.00039726,30]
[355600171,1741357854726,-500.0,0.00039726,30]
[355600172,1741357854735,-500.0,0.00039726,30]
[355600173,1741357854745,-571.98,0.00039726,30]
[355600174,1741357854755,-508.75,0.00039726,30]
[355600175,1741357854764,-773.88,0.00039726,30]
[355600176,1741357854774,-534.30419642,0.00039726,30]
[355600177,1741357854783,-1190.57,0.00039726,30]
[355600178,1741357854793,-773.31,0.00039726,30]
[355600179,1741357854803,-535.22,0.00039726,30]
[355600180,1741357854814,-1000.0,0.00039726,7]
[355600181,1741357854832,-500.0,0.00039726,30]
[355600182,1741357854844,-674.96,0.00039726,30]
[355600183,1741357854853,-500.0,0.00039726,30]
[355600184,1741357854864,-500.0,0.00039726,30]
[355600185,1741357854875,-500.0,0.00039726,30]
[355600186,1741357854886,-500.0,0.00039726,30]
[355600187,1741357854895,-1092.95,0.00039726,30]
[355600188,1741357854905,-500.0,0.00039726,30]
[355600189,1741357854915,-8089.12,0.00039726,30]
[355600190,1741357854926,-500.0,0.00039726,30]
[355600191,1741357854935,-1368.46,0.00039726,30]
[355600192,1741357854945,-500.0,0.00039726,30]
[355600193,1741357854956,-1646.73,0.00039726,30]
[355600194,1741357854968,-1042.05,0.00039726,30]
[355600195,1741357854980,-896.61,0.00039726,30]
[355600196,1741357854991,-1423.74,0.00039726,30]
[355600197,1741357855001,-545.4,0.00039726,30]
[355600198,1741357855011,-1667.47,0.00039726,30]
[355600199,1741357855020,-855.28,0.00039726,30]
[355600200,1741357855030,-1876.6,0.00039726,30]
[355600201,1741357855040,-500.0,0.00039726,30]
[355600202,1741357855050,-500.0,0.00039726,30]
[355600203,1741357855061,-685.68,0.00039726,30]
[355600204,1741357855071,-1348.74,0.00039726,30]
[355600205,1741357855080,-1572.44,0.00039726,30]
[355600206,1741357855090,-500.0,0.00039726,30]
[355600207,1741357855099,-405.35,0.00039726,2]
[355600208,1741357855109,-500.0,0.00039726,30]
[355600209,1741357855119,-630.9229758,0.00039726,30]
[355600210,1741357855129,-500.0,0.00039726,30]
[355600211,1741357855139,-500.0,0.00039726,30]
[355600212,1741357855149,-132607.36,0.00039726,7]
[355600213,1741357855163,-850.8,0.00039726,30]
[355600214,1741357855175,-408.78049463,0.00039726,30]
[355600215,1741357855185,-500.0,0.00039726,30]
[355600216,1741357855195,-904.12,0.00039726,30]
[355600217,1741357855206,-1621.58,0.00039726,30]
[355600218,1741357855217,-1312.15,0.00039726,30]
[355600219,1741357855228,-500.0,0.00039726,30]
[355600220,1741357855239,-2610.77,0.00039726,30]
[355600221,1741357855250,-716.55,0.00039726,30]
[355600222,1741357855260,-500.0,0.00039726,30]
[355600223,1741357855271,-500.0,0.00039726,30]
[355600224,1741357855280,-500.0,0.00039726,30]
[355600225,1741357855292,-1292.51,0.00039726,30]
[355600226,1741357855302,-612.3,0.00039726,30]
[355600227,1741357855314,-500.0,0.00039726,30]
[355600228,1741357855323,-1382.9,0.00039726,30]
[355600229,1741357855333,-2004.36,0.00039726,15]
[355600230,1741357855343,-577.0,0.00039726,30]
[355600231,1741357855353,-6428.78,0.00039726,30]
[355600232,1741357855363,-722.58,0.00039726,30]
[355600233,1741357855373,-1032.7,0.00039726,30]
[355600234,1741357855383,-158.01253155,0.00039726,30]
[355600235,1741357855393,-665.5,0.00039726,30]
[355600236,1741357855402,-500.0,0.00039726,30]
[355600237,1741357855412,-8893.18,0.00039726,30]
[355600238,1741357855422,-795.02,0.00039726,30]
[355600239,1741357855432,-500.0,0.00039726,30]
[355600240,1741357855442,-1493.56,0.00039726,30]
[355600241,1741357855452,-4367.99,0.00039726,30]
[355600242,1741357855462,-749.31,0.00039726,30]
[355600243,1741357855473,-2707.82,0.00039726,30]
[355600244,1741357855483,-500.0,0.00039726,30]
[355600245,1741357855495,-643.96,0.00039726,30]
[355600246,1741357855505,-500.0,0.00039726,30]
[355600247,1741357855516,-500.0,0.00039726,30]
[355600248,1741357855528,-500.0,0.00039726,30]
[355600249,1741357855539,-2470.25,0.00039726,30]
[355600250,1741357855549,-591.29,0.00039726,30]
[355600251,1741357855559,-5064.26,0.00039726,30]
[355600252,1741357855572,-500.0,0.00039726,30]
[355600253,1741357855583,-2702.56,0.00039726,30]
[355600254,1741357855592,-796.49,0.00039726,30]
[355600255,1741357855601,-748.95,0.00039726,30]
[355600256,1741357855611,-968.16,0.00039726,30]
[355600257,1741357855621,-1575.88,0.00039726,30]
[355600258,1741357855635,-1434.71,0.00039726,30]
[355600259,1741357855645,-1248.42,0.00039726,30]
[355600260,1741357855655,-1206.59,0.00039726,30]
[355600261,1741357855665,-713.9,0.00039726,30]
[355600262,1741357855675,-674.94,0.00039726,30]
[355600263,1741357855687,-1065.08,0.00039726,7]
[355600264,1741357855696,-673.48,0.00039726,30]
[355600265,1741357855706,-500.0,0.00039726,30]
[355600266,1741357855716,-1075.1,0.00039726,30]
[355600267,1741357855725,-500.0,0.00039726,30]
[355600268,1741357855735,-765.28,0.00039726,30]
[355600269,1741357855745,-500.0,0.00039726,30]
[355600270,1741357855754,-773.72,0.00039726,30]
[355600271,1741357855764,-3559.04,0.00039726,30]
[355600272,1741357855773,-1301.44,0.00039726,30]
[355600273,1741357855783,-3825.24,0.00039726,30]
[355600274,1741357855793,-2253.86,0.00039726,30]
[355600275,1741357855803,-500.0,0.00039726,30]
[355600276,1741357855815,-4575.66,0.00039726,30]
[355600277,1741357855826,-500.0,0.00039726,30]
[355600278,1741357855836,-10000.0,0.00039726,14]
[355600279,1741357855846,-639.23,0.00039726,30]
[355600280,1741357855856,-4376.22,0.00039726,30]
[355600281,1741357855865,-10000.0,0.00039726,14]
[355600282,1741357855875,-1801.35,0.00039726,30]
[355600283,1741357855885,-500.0,0.00039726,30]
[355600284,1741357855894,-500.0,0.00039726,30]
[355600285,1741357855904,-500.0,0.00039726,30]
[355600286,1741357855914,-500.0,0.00039726,30]
[355600287,1741357855924,-546.0,0.00039726,30]
[355600288,1741357855934,-547.36090854,0.00039726,2]
[355600289,1741357855944,-500.0,0.00039727,2]
[355600290,1741357855954,-791.9923589,0.00039749,2]
[355600291,1741357855964,-1000.0,0.000398,60]
[355600292,1741357855973,-500.0,0.000398,40]
[355600293,1741357855983,-1000.0,0.00039899,3]
[355600294,1741357855992,-500.0,0.000399,41]
[355600295,1741357856002,-1000.0,0.0004,30]
[355600296,1741357856012,-806.97,0.0004,30]
[355600297,1741357856022,-500.0,0.0004,30]
[355600298,1741357856033,-500.0,0.0004,30]
[355600299,1741357856042,-500.0,0.0004,30]
[355600300,1741357856054,-500.0,0.0004,30]
[355600301,1741357856067,-500.0,0.0004,30]
[355600302,1741357856076,-500.0,0.0004,30]
[355600303,1741357856086,-500.0,0.0004,3]
[355600304,1741357856096,-500.0,0.0004,30]
[355600305,1741357856106,-500.0,0.0004,30]
[355600306,1741357856116,-500.0,0.0004,30]
[355600307,1741357856126,-705.57,0.0004,30]
[355600308,1741357856142,-500.0,0.0004,30]
[355600309,1741357856152,-2051.0,0.0004,30]
[355600310,1741357856162,-500.0,0.0004,30]
[355600311,1741357856172,-706.25,0.0004,30]
[355600312,1741357856184,-500.0,0.0004,30]
[355600313,1741357856194,-500.0,0.0004,30]
[355600314,1741357856204,-500.0,0.0004,30]
[355600315,1741357856215,-580.88,0.0004,30]
[355600316,1741357856225,-558.69,0.0004,30]
[355600317,1741357856235,-500.0,0.0004,30]
[355600318,1741357856245,-500.0,0.0004,30]
[355600319,1741357856255,-500.0,0.0004,30]
[355600320,1741357856267,-500.0,0.0004,30]
[355600321,1741357856280,-512.17,0.0004,30]
[355600322,1741357856290,-500.0,0.0004,30]
[355600323,1741357856300,-500.0,0.0004,30]
[355600324,1741357856313,-500.0,0.0004,30]
[355600325,1741357856324,-500.0,0.0004,30]
[355600326,1741357856335,-500.0,0.0004,30]
[355600327,1741357856346,-602.65,0.0004,30]
[355600328,1741357856356,-500.0,0.0004,30]
[355600329,1741357856367,-1216.438707,0.0004,13]
[355600330,1741357856378,-712.98,0.0004,30]
[355600331,1741357856388,-500.0,0.0004,30]
[355600332,1741357856398,-500.0,0.0004,30]
[355600333,1741357856408,-500.0,0.0004,30]
[355600334,1741357856418,-1165.07,0.0004,30]
[355600335,1741357856428,-500.0,0.0004,30]
[355600336,1741357856438,-1041.2,0.0004,30]
[355600337,1741357856448,-1106.08,0.0004,30]
[355600338,1741357856458,-500.0,0.0004,30]
[355600339,1741357856468,-832.8,0.0004,30]
[355600340,1741357856479,-500.0,0.0004,30]
[355600341,1741357856490,-500.0,0.0004,30]
[355600342,1741357856499,-548.57,0.0004,30]
[355600343,1741357856509,-500.0,0.0004,30]
[355600344,1741357856519,-663.33,0.0004,30]
[355600345,1741357856528,-500.0,0.0004,2]
[355600346,1741357856538,-500.0,0.0004,30]
[355600347,1741357856549,-500.0,0.0004,41]
[355600348,1741357856559,-500.0,0.0004,30]
[355600349,1741357856572,-519.0638191,0.0004,30]
[355600350,1741357856582,-571.98,0.0004,30]
[355600351,1741357856592,-508.75,0.0004,30]
[355600352,1741357856602,-773.88,0.0004,30]
[355600353,1741357856612,-150.0,0.0004,120]
[355600354,1741357856622,-150.0,0.0004,120]
[355600355,1741357856631,-1190.57,0.0004,30]
[355600356,1741357856642,-773.31,0.0004,30]
[355600357,1741357856652,-535.22,0.0004,30]
[355600358,1741357856662,-1000.0,0.0004,7]
[355600359,1741357856672,-500.0,0.0004,30]
[355600360,1741357856682,-674.96,0.0004,30]
[355600361,1741357856692,-500.0,0.0004,30]
[355600362,1741357856702,-500.0,0.0004,30]
[355600363,1741357856712,-500.0,0.0004,30]
[355600364,1741357856856,-500.0,0.0004,30]
[355600365,1741357856867,-1092.95,0.0004,30]
[355600366,1741357856876,-500.0,0.0004,30]